lending/lending_fUSD_20251015
["ID","MTS","AMOUNT","RATE_DAILY","PERIOD"]
[391363903,1760569854631,-151.0,0.00023287,7]
[391363904,1760569854641,-151.0,0.00023287,7]
[391363905,1760569854651,-151.0,0.00023287,7]
[391363906,1760569854660,-151.0,0.00023287,7]
[391363907,1760569854669,-151.0,0.00023287,7]
[391363908,1760569854678,-151.0,0.00023287,7]
[391363909,1760569854687,-151.0,0.00023287,7]
[391363910,1760569854696,-151.0,0.00023287,7]
[391363911,1760569854706,-151.0,0.00023287,7]
[391363912,1760569854715,-151.0,0.00023287,7]
[391363913,1760569854724,-10000.0,0.00023287,5]
[391363914,1760569854733,-151.0,0.00023287,7]
[391363915,1760569854743,-151.0,0.00023287,7]
[391363916,1760569854752,-299.567544,0.00023287,7]
[391363917,1760569854761,-233.569075,0.00023287,7]
[391363918,1760569854770,-233.569075,0.00023287,7]
[391363919,1760569854779,-151.0,0.00023287,7]
[391363920,1760569854788,-233.569075,0.00023287,7]
[391363921,1760569854798,-233.569067,0.00023287,7]
[391363922,1760569854807,-230.703748,0.00023287,7]
[391363923,1760569854816,-230.703748,0.00023287,7]
[391363924,1760569854826,-230.703748,0.00023287,7]
[391363925,1760569854835,-230.703738,0.00023287,7]
[391363926,1760569854844,-151.0,0.00023287,7]
[391363927,1760569854854,-226.160545,0.00023287,7]
[391363928,1760569854864,-216.851707,0.00023287,7]
[391363929,1760569854873,-226.160545,0.00023287,7]
[391363930,1760569854882,-226.160545,0.00023287,7]
[391363931,1760569854892,-226.16054424,0.00023287,7]
[391363932,1760569854901,-151.0,0.00023287,7]
[391363933,1760569854910,-834.39135188,0.00023329,2]
[391363934,1760569854919,-11515.95314527,0.00023333,7]
[391363935,1760569854928,-12802.18241077,0.00023343,2]
[391363936,1760569854938,-13271.78849198,0.00023343,2]
[391363937,1760569854947,-379.905128,0.00023343,7]
[391363938,1760569854957,-151.0,0.00023343,7]
[391363939,1760569854967,-379.905128,0.00023343,7]
[391363940,1760569854976,-151.0,0.00023343,7]
[391363941,1760569854986,-379.905128,0.00023343,7]
[391363942,1760569854995,-235.315372,0.00023343,7]
[391363943,1760569855005,-379.905132,0.00023343,7]
[391363944,1760569855014,-151.0,0.00023343,7]
[391363945,1760569855023,-151.0,0.00023343,7]
[391363946,1760569855034,-151.0,0.00023343,7]
[391363947,1760569855045,-397.682798,0.00023343,7]
[391363948,1760569855055,-397.682798,0.00023343,7]
[391363949,1760569855065,-397.682798,0.00023343,7]
[391363950,1760569855074,-397.682806,0.00023343,7]
[391363951,1760569855086,-151.0,0.00023343,7]
[391363952,1760569855095,-151.0,0.00023343,7]
[391363953,1760569855105,-151.0,0.00023343,7]
[391363954,1760569855120,-151.0,0.00023343,7]
[391363955,1760569855129,-151.0,0.00023343,7]
[391363956,1760569855139,-151.0,0.00023343,7]
[391363957,1760569855148,-210.40456,0.00023343,7]
[391363958,1760569855158,-151.0,0.00023343,7]
[391363959,1760569855167,-151.0,0.00023343,7]
[391363960,1760569855177,-151.0,0.00023343,7]
[391363961,1760569855186,-247.575844,0.00023343,7]
[391363962,1760569855195,-151.0,0.00023343,7]
[391363963,1760569855215,-178.079619,0.00023343,7]
[391363964,1760569855224,-157.088398,0.00023343,7]
[391363965,1760569855234,-157.088398,0.00023343,7]
[391363966,1760569855243,-157.088398,0.00023343,7]
[391363967,1760569855253,-157.088396,0.00023343,7]
[391363968,1760569855262,-204.778773,0.00023343,7]
[391363969,1760569855271,-151.0,0.00023343,7]
[391363970,1760569855279,-156.886335,0.00023343,7]
[391363971,1760569855288,-375.417374,0.00023343,7]
[391363972,1760569855299,-156.886335,0.00023343,7]
[391363973,1760569855308,-375.417374,0.00023343,7]
[391363974,1760569855318,-780.502411,0.00023343,7]
[391363975,1760569855327,-156.886335,0.00023343,7]
[391363976,1760569855337,-780.502411,0.00023343,7]
[391363977,1760569855347,-375.417374,0.00023343,7]
[391363978,1760569855356,-156.886335,0.00023343,7]
[391363979,1760569855365,-375.417366,0.00023343,7]
[391363980,1760569855374,-780.502411,0.00023343,7]
[391363981,1760569855383,-780.502419,0.00023343,7]
[391363982,1760569855392,-301.198883,0.00023343,7]
[391363983,1760569855401,-151.0,0.00023343,7]
[391363984,1760569855410,-301.99999996,0.00023343,7]
[391363985,1760569855419,-151.0,0.00023343,7]
[391363986,1760569855429,-302.258774,0.00023343,7]
[391363987,1760569855438,-302.258774,0.00023343,7]
[391363988,1760569855447,-302.258774,0.00023343,7]
[391363989,1760569855457,-706.355919,0.00023343,7]
[391363990,1760569855466,-302.25876915,0.00023343,7]
[391363991,1760569855475,-706.355919,0.00023343,7]
[391363992,1760569855484,-706.355919,0.00023343,7]
[391363993,1760569855493,-706.35591,0.00023343,7]
[391363994,1760569855502,-151.0,0.00023343,7]
[391363995,1760569855511,-151.0,0.00023343,7]
[391363996,1760569855521,-151.0,0.00023343,7]
[391363997,1760569855531,-151.0,0.00023343,7]
[391363998,1760569855541,-151.0,0.00023343,7]
[391363999,1760569855551,-151.0,0.00023343,7]
[391364000,1760569855560,-151.0,0.00023343,7]
[391364001,1760569855570,-151.0,0.00023343,7]
[391364002,1760569855579,-151.0,0.00023343,7]
[391364003,1760569855588,-151.0,0.00023343,7]
[391364004,1760569855596,-229.592061,0.00023343,7]
[391364005,1760569855605,-151.0,0.00023343,7]
[391364006,1760569855615,-229.592061,0.00023343,7]
[391364007,1760569855624,-151.0,0.00023343,7]
[391364008,1760569855634,-229.592061,0.00023343,7]
[391364009,1760569855643,-151.0,0.00023343,7]
[391364010,1760569855653,-229.59206417,0.00023343,7]
[391364011,1760569855662,-151.0,0.00023343,7]
[391364012,1760569855671,-1601.717015,0.00023343,7]
[391364013,1760569855680,-1601.717015,0.00023343,7]
[391364014,1760569855689,-1601.717015,0.00023343,7]
[391364015,1760569855699,-2000.0,0.000234,2]
[391364016,1760569855708,-1000.0,0.000234,2]
[391364017,1760569855718,-252.72764399,0.00023482,13]
[391364018,1760569855727,-200.0,0.000235,2]
[391364019,1760569855736,-3710.55990938,0.000235,30]
[391364020,1760569855745,-151.0,0.000235,7]
[391364021,1760569855754,-270.18472,0.000235,7]
[391364022,1760569855763,-151.0,0.00023508,7]
[391364023,1760569855773,-151.0,0.00023508,7]
[391364024,1760569855782,-151.0,0.00023508,7]
[391364025,1760569855791,-161.647761,0.00023508,7]
[391364026,1760569855800,-161.647761,0.00023508,7]
[391364027,1760569855810,-161.647761,0.00023508,7]
[391364028,1760569855819,-161.647769,0.00023508,7]
[391364029,1760569855827,-16497.92873727,0.00023666,2]
[391364030,1760569855837,-168.0,0.00023723,2]
[391364031,1760569855846,-1815.298752,0.00023728,2]
[391364032,1760569855855,-673.0,0.00023735,2]
[391364033,1760569855864,-4000.0,0.00023766,2]
[391364034,1760569855873,-555.420129,0.00023827,2]
[391364035,1760569855882,-1746.55,0.00023836,2]
[391364036,1760569855891,-21968.8998052,0.0002385,2]
[391364037,1760569855900,-500.0,0.0002397,2]
[391364038,1760569855909,-32817.58182693,0.00024,4]
[391364039,1760569855918,-231.82958,0.00024,7]
[391364040,1760569855928,-231.82958,0.00024,7]
[391364041,1760569855938,-231.82958,0.00024,7]
[391364042,1760569855947,-231.82958,0.00024,7]
[391364043,1760569855956,-151.0,0.00024,7]
[391364044,1760569855966,-151.0,0.00024,7]
[391364045,1760569855975,-151.0,0.00024,7]
[391364046,1760569855984,-151.0,0.00024,7]
[391364047,1760569855994,-2545.0,0.00024031,2]
[391364048,1760569856003,-152.0,0.00024036,4]
[391364049,1760569856012,-252.72764399,0.00024049,15]
[391364050,1760569856021,-298.26089446,0.00024119,2]
[391364051,1760569856031,-310.6741041,0.00024119,2]
[391364052,1760569856046,-620.04482655,0.0002412,2]
[391364053,1760569856055,-161.7401284,0.0002415,2]
[391364054,1760569856064,-1000.0,0.00024155,2]
[391364055,1760569856073,-39703.15,0.000242,7]
[391364056,1760569856082,-1600.0,0.00024213,2]
[391364057,1760569856091,-156.4,0.00024263,2]
[391364058,1760569856100,-151.0,0.00024263,3]
[391364059,1760569856110,-1132.95629385,0.00024314,2]
[391364060,1760569856119,-4688.96831377,0.00024331,2]
[391364061,1760569857517,-22169.99999999,0.000185,2]
[391364062,1760569857529,-2840.99048588,0.000185,2]
[391364063,1760569857540,-33458.81593707,0.000185,2]
[391364064,1760569857555,-901.74041416,0.000185,2]
[391364065,1760569858141,1000.0,0.00027397,120]
[391364066,1760570029608,2000.0,0.00027397,120]
[391364067,1760570098873,651.13,0.00027397,120]
[391364068,1760570105450,186.0,0.00022007,120]
[391364069,1760570106727,186.0,0.00023108,120]
[391364070,1760570108047,186.0,0.00024263,120]
[391364071,1760570109351,186.0,0.00025476,120]
[391364072,1760570601683,392.0,0.00027397,120]
[391364073,1760570746120,1163.31256103,0.00027397,120]
[391364074,1760570763965,2000.0,0.00027397,120]
[391364080,1760570832076,300.0,0.00027397,120]
[391364083,1760570847187,350.0,0.00027397,120]
[391364084,1760570883238,350.45604883,0.00027397,120]
[391364085,1760570889897,470.13882327,0.00027397,120]
[391364086,1760570911829,341.74,0.0002,120]
[391364089,1760570950582,167.22,9.015e-05,2]
[391364090,1760570950809,167.22,0.00010303,2]
[391364091,1760570951055,167.22,0.00011591,2]
[391364110,1760571032210,-167.22,0.00012879,2]
[391364112,1760571032219,-233.77658067,0.00014167,2]
[391364114,1760571032230,-16.22341933,0.00014167,2]
[391364116,1760571032239,-167.22,0.00014167,2]
[391364117,1760571032248,-167.22,0.00015455,2]
[391364118,1760571032257,-884.8413238,0.000157,2]
[391364119,1760571032267,-28.79369718,0.0001575,2]
[391364120,1760571032278,-446.70254799,0.0001575,2]
[391364121,1760571032287,-219.29745201,0.000159,2]
[391364122,1760571032298,-665.54387179,0.000159,2]
[391364123,1760571032311,-884.8413238,0.00016,2]
[391364124,1760571032320,-968.0,0.00016199,2]
[391364125,1760571032330,-300.0,0.00016199,2]
[391364126,1760571032342,-884.8413238,0.000162,2]
[391364127,1760571032351,-5000.0,0.000162,5]
[391364128,1760571032361,-884.8413238,0.000163,2]
[391364129,1760571032370,-167.22,0.00016743,2]
[391364130,1760571032379,-250.0,0.00017,2]
[391364131,1760571032388,-4178.63566679,0.00017084,2]
[391364132,1760571032397,-550.0,0.00017269,2]
[391364133,1760571032407,-195.0,0.0001727,2]
[391364134,1760571032416,-150.0,0.0001727,2]
[391364135,1760571032425,-1096.29,0.00017745,2]
[391364136,1760571032436,-250.0,0.00017751,2]
[391364137,1760571032447,-1142.56840184,0.00018,2]
[391364138,1760571032456,-167.22,0.00018031,2]
[391364139,1760571032467,-1142.56840184,0.000182,2]
[391364140,1760571032480,-151.0,0.00018389,2]
[391364141,1760571032490,-151.0,0.00018389,2]
[391364142,1760571032499,-151.0,0.00018389,2]
[391364143,1760571032509,-151.0,0.00018389,2]
[391364144,1760571032519,-151.0,0.00018389,2]
[391364145,1760571032528,-151.0,0.00018389,2]
[391364146,1760571032537,-151.0,0.00018389,2]
[391364147,1760571032548,-151.0,0.00018389,2]
[391364148,1760571032558,-151.0,0.00018389,2]
[391364149,1760571032568,-151.0,0.00018389,2]
[391364150,1760571032577,-151.0,0.00018389,2]
[391364151,1760571032588,-200.0,0.00018389,2]
[391364152,1760571032598,-200.0,0.00018389,2]
[391364153,1760571032608,-5670.43043802,0.0001839,2]
[391364154,1760571032618,-4465.90730607,0.0001839,2]
[391364155,1760571032629,-456.37052482,0.00018393,2]
[391364156,1760571032639,-5161.39050431,0.00018395,2]
[391364157,1760571032649,-1142.56840184,0.000184,2]
[391364158,1760571032659,-5161.39050431,0.00018406,2]
[391364159,1760571032669,-5670.43043802,0.00018406,2]
[391364160,1760571032679,-456.37052482,0.00018422,2]
[391364161,1760571032688,-291.91501561,0.00018425,2]
[391364162,1760571032698,-291.91501561,0.00018429,2]
[391364163,1760571032708,-5161.39050432,0.0001843,2]
[391364164,1760571032718,-173.99200838,0.00018437,2]
[391364165,1760571032728,-247.54996349,0.00018437,2]
[391364166,1760571032737,-579.97336128,0.00018444,2]
[391364167,1760571032747,-5161.39050432,0.00018447,2]
[391364168,1760571032757,-5161.39050432,0.00018452,2]
[391364169,1760571032768,-4465.90730607,0.00018452,2]
[391364170,1760571032779,-291.91501561,0.00018456,2]
[391364171,1760571032790,-4465.90730607,0.00018468,2]
[391364172,1760571032800,-247.54996349,0.00018469,2]
[391364173,1760571032811,-247.54996349,0.0001847,2]
[391364174,1760571032820,-5161.39050431,0.0001847,2]
[391364176,1760571032830,-173.99200838,0.00018475,2]
[391364178,1760571032843,-5670.43043802,0.00018479,2]
[391364180,1760571032853,-579.97336128,0.00018484,2]
[391364182,1760571032863,-456.37052482,0.00018487,2]
[391364183,1760571032873,-173.99200838,0.00018494,2]
[391364184,1760571032884,-579.97336128,0.000185,2]
[391364185,1760571032895,-1142.56840184,0.000185,2]
[391364186,1760571032904,-1142.56840184,0.000187,2]
[391364187,1760571032914,-783.34561776,0.00018773,2]
[391364188,1760571032924,-2237.08,0.00018781,30]
[391364189,1760571032934,-1142.56840184,0.000189,2]
[391364190,1760571032943,-200.0,0.00018937,2]
[391364191,1760571032953,-200.0,0.00018937,2]
[391364192,1760571032963,-300.0,0.00019,2]
[391364193,1760571032972,-1142.56840184,0.000191,2]
[391364194,1760571032983,-455.7500646,0.00019268,2]
[391364195,1760571032993,-1142.56840184,0.000193,2]
[391364196,1760571033003,-200.0,0.00019485,2]
[391364197,1760571033014,-200.0,0.00019485,2]
[391364198,1760571033023,-1142.56840184,0.000195,2]
[391364199,1760571033033,-495.63827294,0.00019584,2]
[391364200,1760571033042,-1000.0,0.00019699,2]
[391364201,1760571033052,-1142.56840184,0.000197,2]
[391364202,1760571033061,-53776.15196108,0.000197,3]
[391364203,1760571033071,-5610.40975489,0.00019818,2]
[391364204,1760571033081,-322.6107,0.0001986,2]
[391364205,1760571033092,-151.0,0.0001986,2]
[391364206,1760571033102,-670.58624095,0.0001986,2]
[391364207,1760571033111,-9552.16786547,0.0001986,2]
[391364208,1760571033120,-445.8000011,0.0001986,2]
[391364209,1760571033130,-2000.0,0.0001986,2]
[391364210,1760571033139,-2000.0,0.0001986,2]
[391364211,1760571033149,-2000.0,0.0001986,2]
[391364212,1760571033159,-1000.0,0.0001986,2]
[391364213,1760571033168,-277.35679052,0.0001986,2]
[391364214,1760571033178,-293.66878272,0.000199,2]
[391364215,1760571033188,-8125.80425691,0.000199,2]
[391364216,1760571033197,-9711.14652567,0.00019915,2]
[391364217,1760571033207,-27109.15981028,0.0001995,15]
[391364218,1760571033216,-500.0,0.00019973,2]
[391364219,1760571033225,-500.0,0.00019973,2]
[391364220,1760571033235,-500.0,0.00019973,2]
[391364221,1760571033246,-151.56,0.00019982,2]
[391364222,1760571033256,-182.58,0.00019982,2]
[391364223,1760571033266,-151.0,0.00019997,2]
[391364224,1760571033276,-500.0,0.00019999,2]
[391364225,1760571033285,-500.0,0.00019999,2]
[391364226,1760571033295,-500.0,0.00019999,2]
[391364227,1760571033304,-500.0,0.00019999,2]
[391364228,1760571033314,-500.0,0.00019999,2]
[391364229,1760571033323,-273.0516941,0.00019999,2]
[391364230,1760571033332,-500.0,0.00019999,2]
[391364231,1760571033344,-500.0,0.00019999,2]
[391364232,1760571033354,-500.0,0.00019999,2]
[391364233,1760571033363,-44599.16829101,0.0002,2]
[391364234,1760571033376,-454.9276565,0.0002,2]
[391364235,1760571033388,-572.83714204,0.0002,2]
[391364236,1760571033407,-2977.43293745,0.0002,2]
[391364237,1760571033418,-5105.55691751,0.0002,2]
[391364238,1760571033429,-2743.39777145,0.0002,2]
[391364239,1760571033440,-599.68191506,0.0002,2]
[391364240,1760571033451,-1126.92569481,0.0002,2]
[391364241,1760571033462,-119148.99610047,0.0002,2]
[391364242,1760571033476,-357.0363872,0.0002,2]
[391364246,1760571038192,-1664.00659169,0.0002,2]
[391364247,1760571038203,-3480.14988201,0.0002,2]
[391364281,1760571041757,-500.0,0.00019999,2]
[391364282,1760571041767,-140667.86925441,0.0002,2]
[391364283,1760571041776,-2533.70273289,0.0002,5]
[391364284,1760571041786,-441.71460166,0.00020308,2]
[391364285,1760571041795,-151.0,0.00020408,2]
[391364286,1760571041804,-10957.59,0.00020681,2]
[391364287,1760571041813,-1000.0,0.00020914,2]
[391364288,1760571041823,-162.77,0.00020926,2]
[391364289,1760571041832,-5919.46,0.00020946,2]
[391364290,1760571041843,-8125.80425682,0.00020956,2]
[391364291,1760571041852,-76490.78,0.00020988,2]
[391364292,1760571041862,-350.0,0.00021,2]
[391364293,1760571041871,-2000.0,0.000211,2]
[391364294,1760571041881,-293.66878271,0.00021107,2]
[391364295,1760571041891,-187.87346871,0.00021229,2]
[391364296,1760571041900,-5800.0,0.00021447,2]
[391364297,1760571041909,-5800.0,0.00021455,2]
[391364298,1760571041919,-5800.0,0.00021464,2]
[391364299,1760571041929,-5800.0,0.00021472,2]
[391364300,1760571041939,-5800.0,0.00021481,2]
[391364301,1760571041947,-155.46411154,0.00021486,2]
[391364302,1760571041957,-5800.0,0.00021489,2]
[391364303,1760571041967,-1000.0,0.00021699,2]
[391364304,1760571041976,-441.71460159,0.00021801,2]
[391364305,1760571041986,-300.0,0.00021948,2]
[391364306,1760571041995,-508.0,0.00022,2]
[391364307,1760571042006,-175.0,0.00022,2]
[391364308,1760571042015,-8125.80425682,0.00022011,2]
[391364309,1760571042024,-372.79494855,0.00022015,2]
[391364310,1760571042034,-508.0,0.00022192,7]
[391364311,1760571042043,-293.66878271,0.00022314,2]
[391364312,1760571042052,-260.4612808,0.00022369,2]
[391364313,1760571042062,-200.8208102,0.00022369,2]
[391364314,1760571042072,-508.0,0.00022466,7]
[391364315,1760571042081,-1000.0,0.00022483,2]
[391364316,1760571042092,-508.0,0.0002274,7]
[391364317,1760571042102,-400.0,0.00023,2]
[391364318,1760571042111,-508.0,0.00023014,7]
[391364319,1760571042120,-175.0,0.00023014,7]
[391364320,1760571042129,-508.0,0.00023014,7]
[391364321,1760571042139,-8125.80425682,0.00023067,2]
[391364322,1760571042148,-2500.0,0.00023167,2]
[391364323,1760571042158,-152.0,0.00023232,3]
[391364324,1760571042167,-1000.0,0.00023267,2]
[391364325,1760571042176,-441.71460159,0.00023295,2]
[391364326,1760571042185,-845.39238065,0.00023298,2]
[391364327,1760571042195,-300.0,0.00023318,2]
[391364328,1760571042204,-293.66878271,0.0002352,2]
[391364329,1760571042213,-845.39238065,0.00023598,2]
[391364330,1760571042223,-2210.31442915,0.00023601,2]
[391364331,1760571042233,-2237.08,0.00023763,30]
[391364332,1760571042243,-1489.07,0.00023836,2]
[391364333,1760571042252,-1000.0,0.00024,2]
[391364334,1760571042262,-1000.0,0.00024,2]
[391364335,1760571042271,-1000.0,0.00024,2]
[391364336,1760571042280,-1000.0,0.00024,2]
[391364337,1760571042289,-1000.0,0.00024,2]
[391364338,1760571042299,-1000.0,0.00024,2]
[391364339,1760571042311,-1000.0,0.00024,2]
[391364340,1760571042321,-1000.0,0.00024,2]
[391364341,1760571042333,-1000.0,0.00024,2]
[391364342,1760571042349,-1000.0,0.00024,2]
[391364343,1760571042359,-1000.0,0.00024,2]
[391364344,1760571042368,-845.39238066,0.00024008,2]
[391364345,1760571042378,-682.29463875,0.00024008,2]
[391364346,1760571042387,-1000.0,0.00024051,2]
[391364347,1760571042396,-8125.80425682,0.00024122,2]
[391364348,1760571042407,-518.0,0.00024164,7]
[391364349,1760571042423,-176.0,0.00024164,7]
[391364350,1760571042441,-508.0,0.00024164,7]
[391364351,1760571042452,-475.49624517,0.00024164,7]
[391364352,1760571042463,-152.0,0.0002417,4]
[391364353,1760571042482,-160.87861,0.000242,2]
[391364354,1760571042502,-700.0,0.0002427,2]
[391364355,1760571042521,-214.4,0.000243,2]
[391364356,1760571042532,-1000.0,0.00024331,2]
[391364357,1760571042544,-1000.0,0.00024331,2]
[391364358,1760571042554,-1000.0,0.00024331,2]
[391364359,1760571042565,-1000.0,0.00024331,2]
[391364360,1760571042574,-1000.0,0.00024331,2]
[391364361,1760571042583,-1000.0,0.00024331,2]
[391364362,1760571042593,-1000.0,0.00024331,2]
[391364363,1760571042603,-1000.0,0.00024331,2]
[391364364,1760571042612,-370.3669502,0.00024331,2]
[391364365,1760571042621,-193.21224143,0.000246,2]
[391364366,1760571042631,-901.61394216,0.00024657,10]
[391364367,1760571042641,-1000.0,0.00024658,2]
[391364368,1760571042650,-983.01,0.00024658,2]
[391364369,1760571042659,-159458.9466,0.000247,2]
[391364370,1760571042668,-1000.0,0.000247,2]
[391364371,1760571042678,-300.0,0.000247,14]
[391364372,1760571042687,-300.0,0.000247,14]
[391364373,1760571042696,-300.0,0.000247,14]
[391364374,1760571042707,-300.0,0.000247,14]
[391364375,1760571042716,-300.0,0.000247,14]
[391364376,1760571042725,-300.0,0.000247,14]
[391364377,1760571042735,-300.0,0.000247,14]
[391364378,1760571042744,-300.0,0.000247,14]
[391364379,1760571042754,-300.0,0.000247,14]
[391364380,1760571042764,-300.0,0.000247,14]
[391364381,1760571042773,-293.66878271,0.00024727,2]
[391364382,1760571042783,-168.0,0.00024733,2]
[391364383,1760571042792,-174.9729843,0.00024772,15]
[391364384,1760571042801,-150.0,0.00024773,2]
[391364385,1760571042811,-441.71460159,0.00024788,2]
[391364386,1760571042820,-2000.0,0.000248,2]
[391364387,1760571042829,-475.49624517,0.000248,3]
[391364388,1760571042838,-335.28226487,0.000248,3]
[391364389,1760571042853,-798.32,0.000248,3]
[391364390,1760571042868,-27940.09846852,0.000248,3]
[391364391,1760571042879,-3839.24170629,0.000248,3]
[391364393,1760571044650,-307.79937745,0.000248,3]
[391364394,1760571044785,-734.04574579,0.000248,3]
[391364395,1760571044805,-6218.60568775,0.000248,3]
[391364419,1760571046357,-1291.15260001,0.00022369,2]
[391364420,1760571046386,-1964.3187911,0.00022369,2]
[391364436,1760571664206,800.0,0.00026986,120]
[391364437,1760571737029,3000.0,0.00027397,120]
[391364438,1760571748829,3965.0,0.00027397,120]
[391364439,1760571906202,2006.6619916,0.0002739,120]
[391364440,1760571992328,1600.0,0.00025845,120]
[391364441,1760572167613,-526.03,0.00013699,2]
[391364468,1760572232335,-254.32599035,0.00014212,2]
[391364469,1760572232344,-300.0,0.00015067,2]
[391364470,1760572232353,-250.0,0.00015068,2]
[391364471,1760572232363,-301.69582067,0.00015068,2]
[391364472,1760572232371,-300.0,0.00015068,2]
[391364473,1760572232380,-195.96445674,0.00015068,2]
[391364474,1760572232390,-195.0,0.00015445,2]
[391364475,1760572232399,-2500.0,0.00015445,2]
[391364476,1760572232408,-396.2750161,0.00015634,2]
[391364477,1760572232419,-298.86,0.00015634,2]
[391364478,1760572232437,-1111.4839652,0.00015634,2]
[391364479,1760572232447,-193.3810187,0.00015634,2]
[391364480,1760572232457,-250.0,0.00017,2]
[391364481,1760572232466,-475.49624517,0.00017988,2]
[391364482,1760572232475,-152.61566657,0.00018,2]
[391364488,1760572237390,-1570.92990457,0.00018,2]
[391364489,1760572237399,-1723.54557114,0.000182,2]
[391364490,1760572237409,-1114.12389632,0.000184,2]
[391364491,1760572237595,-609.42167482,0.000184,2]
[391364492,1760572237605,-276.27185004,0.000185,2]
[391364493,1760572237617,-450.58499,0.000185,2]
[391364594,1760572239630,-442.38125103,0.000185,2]
[391364595,1760572239643,-554.30748007,0.000185,2]
[391364596,1760572239653,-1085.23203047,0.000187,2]
[391364597,1760572239666,-638.31354067,0.000187,2]
[391364598,1760572239675,-1723.54557114,0.000189,2]
[391364599,1760572239685,-300.0,0.00019,2]
[391364600,1760572239695,-1723.54557114,0.000191,2]
[391364601,1760572239705,-200.0,0.00019222,2]
[391364602,1760572239715,-151.0,0.00019222,2]
[391364603,1760572239725,-151.0,0.00019222,2]
[391364604,1760572239734,-151.0,0.00019222,2]
[391364605,1760572239744,-151.0,0.00019222,2]
[391364606,1760572239753,-151.0,0.00019222,2]
[391364607,1760572239763,-151.0,0.00019222,2]
[391364608,1760572239772,-151.0,0.00019222,2]
[391364609,1760572239781,-151.0,0.00019222,2]
[391364610,1760572239791,-151.0,0.00019222,2]
[391364611,1760572239800,-151.0,0.00019222,2]
[391364612,1760572239809,-151.0,0.00019222,2]
[391364613,1760572239818,-151.0,0.00019222,2]
[391364614,1760572239827,-151.0,0.00019222,2]
[391364615,1760572239837,-291.56584085,0.00019222,2]
[391364616,1760572239848,-151.0,0.00019222,2]
[391364617,1760572239857,-151.0,0.00019222,2]
[391364618,1760572239867,-1723.54557114,0.000193,2]
[391364619,1760572239876,-175.0033891,0.000195,2]
[391364620,1760572239888,-1548.54218204,0.000195,2]
[391364621,1760572239898,-1723.54557114,0.000197,2]
[391364622,1760572239907,-1000.0,0.000199,2]
[391364623,1760572239919,-150.49,0.0002,2]
[391364624,1760572239929,-150.62,0.0002,2]
[391364625,1760572239939,-151.75,0.0002,2]
[391364626,1760572239948,-151.8,0.0002,2]
[391364627,1760572239958,-526.03,0.00020187,2]
[391364628,1760572239967,-396.72224682,0.00020849,2]
[391364629,1760572239979,-9155.44561865,0.00020849,2]
[391364630,1760572239990,-322.6107,0.00020849,2]
[391364631,1760572240000,-152.5657948,0.00020849,2]
[391364632,1760572240009,-620.04482655,0.00020849,2]
[391364633,1760572240019,-277.35679052,0.00020849,2]
[391364634,1760572240029,-9523.89226191,0.00020904,2]
[391364635,1760572240039,-350.0,0.00021,2]
[391364636,1760572240048,-2545.0,0.00022109,2]
[391364637,1760572240058,-166.66,0.00022154,30]
[391364638,1760572240068,-322.6107,0.00022218,2]
[391364639,1760572240077,-308.52309571,0.00022218,2]
[391364640,1760572240086,-188.63,0.00022332,2]
[391364641,1760572240096,-9425.64893749,0.00022369,2]
[391364642,1760572240105,-151.0,0.00022419,2]